bitfinex-derivatives/quotes_SOLF0:USTF0_20240815
["timestamp","ask_amount","ask_price","bid_price","bid_amount"]
[1723747444656,25.88,139.22,139.19,0.04851798]
[1723747444957,3.582466,139.21,139.15,3.5925]
[1723747445266,3.592,139.18,139.15,3.5925]
[1723747445757,3.592,139.18,139.17,0.04979327]
[1723747446147,3.592,139.18,139.11,3.59935256]
[1723747446148,29.472,139.18,139.11,3.59935256]
[1723747446351,3.56450158,139.21,139.07,9.4013]
[1723747446352,25.88,139.16,139.07,9.4013]
[1723747446754,3.5936,139.12,139.07,1.2813]
[1723747446947,25.88,139.16,139.08,3.53713456]
[1723747447154,25.88,139.16,139.08,3.54575997]
[1723747447649,8.12,139.19,139.11,0.05131189]
[1723747447650,0.04979327,139.13,139.11,0.05131189]
[1723747447856,0.04979327,139.13,139.12,3.5934]
[1723747448148,3.56450158,139.21,139.12,3.53713456]
[1723747448351,0.04979327,139.14,139.11,25.93131189]
[1723747448652,15.3012,139.24,139.13,25.88]
[1723747448653,34.0,139.24,139.13,25.88]
[1723747448857,3.592,139.18,139.15,3.5926]
[1723747449064,34.0,139.24,139.13,25.88]
[1723747449362,3.591,139.22,139.15,25.88]
[1723747449548,3.50954606,139.28,139.17,25.88]
[1723747449748,25.88,139.27,139.16,9.3394]
[1723747449959,29.68762976,139.27,139.17,0.04706169]
[1723747450458,0.1731,139.27,139.18,3.58092195]
[1723747450657,3.54033984,139.28,139.17,25.88]
[1723747450862,3.59,139.26,139.21,25.88]
[1723747451069,25.88,139.31,139.22,3.64341121]
[1723747451357,25.88,139.31,139.21,25.93239792]
[1723747451761,3.59241423,139.32,139.21,29.50904586]
[1723747451966,3.5892,139.29,139.25,3.5899]
[1723747452167,8.08,139.33,139.23,25.88]
[1723747452356,25.88,139.37,139.25,25.88]
[1723747452559,25.88,139.37,139.26,1.355]
[1723747452760,0.2229,139.39,139.26,1.355]
[1723747452761,25.88,139.35,139.26,1.355]
[1723747453063,25.88,139.33,139.27,8.08]
[1723747453260,25.88,139.33,139.26,9.435]
[1723747453660,3.5881,139.33,139.26,9.435]
[1723747454166,3.5879,139.34,139.3,3.5886]
[1723747454557,25.88,139.33,139.28,0.05360318]
[1723747454961,3.5883,139.32,139.28,3.5893]
[1723747455156,3.5883,139.32,139.26,9.435]
[1723747455364,3.5888,139.31,139.29,0.05199612]
[1723747455559,25.88,139.33,139.29,0.05199612]
[1723747456063,3.58732337,139.34,139.29,0.05199612]
[1723747456064,25.88,139.31,139.29,0.05199612]
[1723747456461,3.5888,139.3,139.29,0.05199612]
[1723747456656,29.39877808,139.31,139.19,3.64402576]
[1723747456860,3.5906,139.24,139.18,1.361]
[1723747457063,25.88,139.28,139.19,25.88]
[1723747457268,25.88,139.32,139.21,25.88]
[1723747457663,25.88,139.3,139.21,25.88]
[1723747457868,3.5893,139.29,139.25,3.5899]
[1723747458064,0.05146519,139.28,139.25,0.04785364]
[1723747459069,3.5898,139.26,139.25,0.04785364]
[1723747460666,0.05146519,139.28,139.25,0.04785364]
[1723747461060,25.88,139.27,139.25,0.04785364]
[1723747461260,25.88,139.27,139.16,10.7873]
[1723747461570,25.88,139.24,139.16,10.7873]
[1723747461966,25.88,139.27,139.16,10.7873]
[1723747462165,3.5905,139.24,139.16,10.7873]
[1723747462364,25.88,139.27,139.16,10.7873]
[1723747462566,0.04534314,139.23,139.2,0.05051747]
[1723747462875,25.88,139.34,139.23,25.88]
[1723747463068,29.412507,139.34,139.24,1.3763]
[1723747463273,29.468,139.34,139.29,3.5889]
[1723747463472,3.58578664,139.35,139.24,1.3763]
[1723747463666,3.5877,139.35,139.31,3.5884]
[1723747463862,7.23090516,139.35,139.31,3.5884]
[1723747464068,25.88,139.36,139.28,0.04967957]
[1723747464069,0.04645686,139.31,139.28,0.04967957]
[1723747464272,0.04645686,139.31,139.3,3.5888]
[1723747464569,0.1212,139.37,139.3,3.58399231]
[1723747464771,3.7083,139.37,139.28,25.88]
[1723747464975,0.05450662,139.32,139.29,0.05170795]
[1723747465370,0.05450662,139.32,139.31,3.5885]
[1723747465570,53.18878922,139.5,139.3,25.88]
[1723747465873,3.5856,139.43,139.36,25.88]
[1723747466173,33.96,139.47,139.36,25.88]
[1723747466377,25.88,139.43,139.27,8.08]
[1723747466676,25.88,139.4,139.28,25.88]
[1723747466871,33.96,139.4,139.28,25.88]
[1723747467068,3.5872,139.37,139.34,0.05151971]
[1723747467464,3.5873,139.36,139.34,0.05151971]
[1723747467668,8.08,139.4,139.34,0.05151971]
[1723747467873,3.63423463,139.4,139.34,0.05151971]
[1723747468065,8.08,139.41,139.34,0.05151971]
[1723747468269,3.5865,139.39,139.34,3.63921971]
[1723747468473,25.88,139.4,139.34,0.05151971]
[1723747468672,1.2626,139.39,139.34,0.05151971]
[1723747468873,1.3545,139.39,139.34,0.05151971]
[1723747470270,3.587,139.37,139.34,0.05151971]
[1723747470471,1.3545,139.39,139.34,0.05151971]
[1723747470678,1.0,139.42,139.34,0.05151971]
[1723747470973,1.0,139.42,139.34,25.93151971]
[1723747471368,1.0,139.42,139.36,25.88]
[1723747471571,1.0,139.42,139.34,0.05151971]
[1723747471572,1.0,139.42,139.39,25.88]
[1723747471775,1.0,139.42,139.41,3.586]
[1723747471978,27.1719,139.49,139.39,25.92736068]
[1723747472172,8.08,139.49,139.44,25.88]
[1723747472375,3.5833,139.52,139.48,3.584]
[1723747472674,3.66369273,139.53,139.44,3.56143512]
[1723747472675,25.88,139.54,139.44,33.96]
[1723747472892,25.88,139.52,139.4,27.2178]
[1723747473177,25.88,139.54,139.49,0.04723156]
[1723747473676,29.48250709,139.54,139.45,3.5849]
[1723747473870,30.96,139.53,139.45,3.5849]
[1723747474074,30.96,139.53,139.41,39.04]
[1723747474273,3.52760419,139.53,139.44,30.96]
[1723747474471,31.053,139.55,139.5,0.05253389]
[1723747475174,3.5834,139.51,139.5,0.05253389]
[1723747475376,30.96,139.51,139.4,1.3378]
[1723747475569,1.0,139.54,139.46,30.96]
[1723747475972,3.5838,139.5,139.46,34.5446]
[1723747476280,0.04856588,139.52,139.41,30.96]
[1723747476781,1.0,139.54,139.4,32.2978]
[1723747476782,1.0,139.54,139.47,0.05426077]
[1723747476972,3.61361709,139.55,139.47,0.05426077]
[1723747477177,30.96,139.58,139.47,0.05426077]
[1723747477377,0.05068548,139.48,139.47,0.05426077]
[1723747477570,0.05068548,139.48,139.47,3.63866077]
[1723747477968,11.71942096,139.57,139.46,30.96]
[1723747478171,11.71942096,139.57,139.47,3.61720096]
[1723747478372,0.05253389,139.49,139.46,31.00655056]
[1723747478875,30.96,139.55,139.47,3.5842]
[1723747479074,0.05253389,139.49,139.46,0.0466313]
[1723747479273,30.96,139.55,139.42,30.96]
[1723747479466,30.96,139.55,139.46,0.05407653]
[1723747479672,0.05118392,139.49,139.46,3.63867653]
[1723747479974,30.96,139.55,139.44,30.96]
[1723747480163,0.05253389,139.49,139.46,0.05425231]
[1723747480369,0.05253389,139.49,139.47,30.96]
[1723747480577,8.08,139.57,139.47,30.96]
[1723747480771,11.67139709,139.57,139.48,3.5842]
[1723747481371,32.381,139.59,139.47,30.96]
[1723747481578,0.05253389,139.54,139.51,0.04542066]
[1723747481771,3.583,139.53,139.51,0.04542066]
[1723747482277,0.05253389,139.54,139.51,0.04542066]
[1723747482278,3.5831,139.52,139.51,0.04542066]
[1723747482677,0.05253389,139.54,139.51,0.04542066]
[1723747482871,3.583,139.53,139.51,0.04542066]
[1723747483071,0.05253389,139.54,139.51,0.04542066]
[1723747484075,0.05253389,139.54,139.52,3.583]
[1723747484578,0.05253389,139.54,139.51,0.04542066]
[1723747484775,0.05253389,139.54,139.51,31.00542066]
[1723747485374,0.05253389,139.54,139.51,0.04542066]
[1723747486180,0.05253389,139.54,139.52,3.5831]
[1723747486770,0.05253389,139.54,139.51,0.04542066]
[1723747487281,0.05253389,139.54,139.52,3.583]
[1723747487676,0.05253389,139.54,139.51,0.04542066]
[1723747487970,0.05253389,139.54,139.53,3.5829]
[1723747490177,0.05253389,139.54,139.51,0.04542066]
[1723747490777,0.05253389,139.54,139.51,3.62872066]
[1723747490984,0.05253389,139.54,139.51,0.04542066]
[1723747491181,3.5831,139.52,139.51,0.04542066]
[1723747491887,34.53897971,139.54,139.41,9.2932]
[1723747492083,34.48644582,139.54,139.45,3.5849]
[1723747492582,34.48644582,139.54,139.42,3.50492651]
[1723747492973,3.5842,139.48,139.45,3.5848]
[1723747493179,0.04549224,139.49,139.47,0.05236379]
[1723747493580,3.5841,139.49,139.42,3.50492651]
[1723747493781,0.05303567,139.49,139.47,0.05271052]
[1723747493984,0.05303567,139.49,139.42,3.50492651]
[1723747494184,0.05303567,139.49,139.47,0.0553215]
[1723747494388,0.05303567,139.49,139.41,1.2532]
[1723747494886,3.5847,139.46,139.43,3.5854]
[1723747495078,0.05303567,139.49,139.41,1.2532]
[1723747495392,39.0,139.49,139.41,3.5858]
[1723747495578,0.05471191,139.46,139.44,0.04917378]
[1723747497589,0.05471191,139.46,139.44,3.63427378]
[1723747498383,0.05471191,139.46,139.44,0.04917378]
[1723747498384,3.63951191,139.46,139.44,0.04917378]
[1723747498584,0.05471191,139.46,139.44,0.04917378]
[1723747498885,0.05471191,139.46,139.45,3.5849]
[1723747499781,0.05471191,139.46,139.44,3.63417378]
[1723747499983,0.05471191,139.46,139.44,0.04917378]
[1723747500383,0.05471191,139.46,139.45,3.5849]
[1723747500591,0.05471191,139.46,139.45,4.9366]
[1723747503093,3.50764898,139.56,139.45,27.1517]
[1723747503293,1.2982,139.57,139.48,25.8]
[1723747503590,3.583,139.53,139.5,3.5836]
[1723747503793,3.55566461,139.56,139.5,3.5836]
[1723747504184,0.04588481,139.54,139.52,0.04913862]
[1723747504586,3.5829,139.53,139.52,0.04913862]
[1723747505080,0.04588481,139.54,139.52,0.04913862]
[1723747505491,25.8,139.53,139.52,0.04913862]
[1723747505690,29.3829,139.53,139.52,0.04913862]
[1723747506081,25.8,139.53,139.52,0.04913862]
[1723747506283,3.62868481,139.54,139.52,0.04913862]
[1723747506484,0.04588481,139.54,139.52,0.04913862]
[1723747506689,0.04588481,139.54,139.52,3.63213862]
[1723747507087,25.8,139.53,139.52,0.04913862]
[1723747507285,29.3829,139.53,139.52,0.04913862]
[1723747507991,25.8,139.5,139.41,8.04]
[1723747508192,8.04,139.54,139.44,25.8]
[1723747508491,1.2982,139.57,139.48,25.8]
[1723747508983,30.60388048,139.57,139.49,1.309]
[1723747509180,30.60388048,139.57,139.44,25.8]
[1723747509181,25.8,139.55,139.44,25.8]
[1723747509392,3.5833,139.52,139.51,0.04954729]
[1723747509585,25.8,139.53,139.43,1.309]
[1723747509783,25.8,139.47,139.4,1.3698]
[1723747509990,29.32001864,139.47,139.4,1.3698]
[1723747510288,3.585,139.45,139.42,3.5856]
[1723747510492,25.8,139.43,139.32,65.74772166]
[1723747510686,25.8,139.43,139.33,35.109]
[1723747510886,25.8,139.43,139.37,0.05259251]
[1723747511092,0.04667961,139.39,139.37,0.05259251]
[1723747511287,3.5867,139.38,139.37,0.05259251]
[1723747511488,3.5867,139.38,139.33,1.309]
[1723747511790,3.5875,139.35,139.31,2.6722]
[1723747511989,29.38623913,139.39,139.29,9.27]
[1723747512185,29.38623913,139.39,139.36,0.05213515]
[1723747512186,0.04794655,139.39,139.36,0.05213515]
[1723747512386,25.8,139.37,139.29,4.8589]
[1723747512591,25.8,139.37,139.29,1.27]
[1723747512992,3.5882,139.33,139.29,4.859]
[1723747513194,25.8,139.34,139.26,2.6129]
[1723747513388,3.5881,139.33,139.29,3.5889]
[1723747513599,25.8,139.34,139.26,2.6129]
[1723747513795,0.04746071,139.31,139.29,0.05380815]
[1723747516486,3.63606071,139.31,139.29,0.05380815]
[1723747516686,0.04746071,139.31,139.29,0.05380815]
[1723747516886,25.84746071,139.31,139.29,0.05380815]
[1723747517092,3.5894,139.28,139.21,2.5626]
[1723747517288,25.8,139.29,139.21,2.5626]
[1723747517903,25.8,139.29,139.23,3.5905]
[1723747518099,25.8,139.31,139.21,28.3626]
[1723747518396,25.8,139.35,139.25,25.8]
[1723747518598,0.04762966,139.27,139.25,25.85497006]
[1723747518793,3.5881,139.33,139.28,3.5891]
[1723747518993,25.8,139.35,139.25,25.85497006]
[1723747519190,25.8,139.33,139.25,0.05497006]
[1723747519390,25.8,139.29,139.23,3.5906]
[1723747519593,25.8,139.29,139.21,2.5626]
[1723747519594,29.3894306,139.29,139.21,2.5626]
[1723747519797,3.5897,139.27,139.21,2.5626]
[1723747519999,29.3894306,139.29,139.21,2.5626]
[1723747520587,0.05318903,139.26,139.21,2.5626]
[1723747520902,0.05318903,139.26,139.24,0.04758409]
[1723747521702,3.64308903,139.26,139.24,0.04758409]
[1723747521901,0.05318903,139.26,139.24,0.04758409]
[1723747523298,25.8,139.25,139.24,0.04758409]
[1723747523495,25.8,139.25,139.16,2.5608]
[1723747523696,25.8,139.22,139.16,2.5608]
[1723747524002,3.5913,139.21,139.16,2.5608]
[1723747524605,29.3909,139.22,139.17,3.592]
[1723747524798,0.04656147,139.2,139.17,3.64525593]
[1723747526106,0.04656147,139.2,139.17,0.05325593]
[1723747526306,25.8,139.18,139.01,64.5540222]
[1723747526498,25.8,139.14,139.07,2.6482]
[1723747526904,29.3932,139.14,139.09,3.5941]
[1723747527203,29.3932,139.14,139.01,64.5540222]
[1723747527204,25.8,139.1,138.91,3.58630895]
[1723747527405,3.595,139.07,139.02,3.5959]
[1723747527601,25.8,139.08,139.02,0.04991825]
[1723747527602,0.0542697,139.05,139.02,0.04991825]
[1723747528706,0.0542697,139.05,139.03,3.5955]
[1723747528903,0.0542697,139.05,139.02,0.04991825]
[1723747529305,0.0542697,139.05,139.04,3.5955]
[1723747530007,31.05,139.14,139.02,31.09991825]
[1723747530400,31.05,139.14,139.08,3.5943]
[1723747530605,31.05,139.14,139.05,8.02]
[1723747530808,31.05,139.12,139.05,8.02]
[1723747531002,31.05,139.12,139.07,3.5946]
[1723747531205,3.5939,139.11,139.07,3.64224565]
[1723747531415,0.04611247,139.1,139.07,3.64224565]
[1723747531605,0.04611247,139.1,139.07,0.04764565]
[1723747532009,31.09611247,139.1,139.07,0.04764565]
[1723747532208,3.5942,139.09,139.07,0.04764565]
[1723747532414,31.09611247,139.1,139.07,0.04764565]
[1723747532609,31.05,139.08,139.07,0.04764565]
[1723747532917,34.6445,139.08,139.07,0.04764565]
[1723747533917,62.1,139.08,138.99,2.7091]
[1723747534115,31.05,139.03,139.0,3.5965]
[1723747534313,31.05,139.03,138.99,2.7091]
[1723747534516,34.6459,139.03,138.99,6.3057]
[1723747534818,34.6459,139.03,138.99,2.7091]
[1723747535018,34.6459,139.03,138.99,6.3057]
[1723747535313,31.05,139.03,138.99,2.7091]
[1723747535515,0.04841277,139.02,139.0,0.05405332]
[1723747535712,0.04841277,139.02,139.0,3.65045332]
[1723747536105,0.04841277,139.02,139.0,0.05405332]
[1723747537616,31.05,139.01,139.0,0.05405332]
[1723747538106,31.05,139.01,138.92,8.04]
[1723747538309,31.05,138.98,138.93,1.2993]
[1723747538518,31.05,138.98,138.95,3.5977]
[1723747538815,31.05,139.03,138.93,32.3493]
[1723747539307,31.05,139.03,138.93,35.96450372]
[1723747539507,0.05512438,138.99,138.98,3.5969]
[1723747540013,31.05,139.03,138.97,0.05028697]
[1723747540319,34.6458,139.03,139.0,3.5965]
[1723747540518,0.05243616,139.01,138.97,0.05028697]
[1723747540716,0.05243616,139.01,139.0,3.5966]
[1723747541015,0.05243616,139.01,138.98,0.05339706]
[1723747541816,0.05243616,139.01,139.0,3.5966]
[1723747542615,0.05243616,139.01,138.98,0.05339706]
[1723747543015,0.05243616,139.01,139.0,3.5966]
[1723747543215,0.05243616,139.01,138.98,0.05339706]
[1723747543811,0.05243616,139.01,139.0,3.5966]
[1723747544016,0.05243616,139.01,138.98,0.05339706]
[1723747544319,0.05243616,139.01,139.0,3.5966]
[1723747545724,7.51202085,139.16,139.0,3.5966]
[1723747545725,31.05,139.1,139.0,3.58412083]
[1723747545920,31.05,139.12,139.01,2.6244]
[1723747546115,31.05,139.15,139.03,31.05]
[1723747546325,31.05,139.17,139.05,31.05]
[1723747546622,31.05,139.17,139.13,3.593]
[1723747546819,0.04611839,139.12,139.1,0.05266994]
[1723747547019,31.05,139.11,139.01,2.6244]
[1723747547225,31.05,139.07,139.01,2.6244]
[1723747547619,31.05,139.12,139.01,2.6244]
[1723747547817,31.05,139.12,139.02,8.02]
[1723747548022,25.86,139.13,139.02,33.88]
[1723747548220,25.86,139.15,139.04,25.86]
[1723747548420,0.04820707,139.08,139.06,0.045708]
[1723747548619,25.86,139.15,139.06,0.045708]
[1723747548819,29.4527,139.15,139.06,0.045708]
[1723747549020,29.4527,139.15,139.04,25.86]
[1723747549222,0.0492872,139.08,139.02,8.02]
[1723747549424,25.9092872,139.08,139.01,2.6244]
[1723747549622,25.9092872,139.08,139.01,10.6244]
[1723747550130,25.86,139.08,139.01,10.6244]
[1723747550327,0.04662234,139.06,139.03,0.0552782]
[1723747550825,0.04662234,139.06,139.05,3.5953]
[1723747551629,25.90662234,139.06,139.03,0.0552782]
[1723747551925,25.86,139.04,139.03,0.0552782]
[1723747552528,0.04662234,139.06,139.03,0.0552782]
[1723747552716,0.04662234,139.06,139.05,3.5953]
[1723747552919,25.86,139.09,139.03,8.0552782]
[1723747553119,9.2618,139.15,139.03,8.0552782]
[1723747553326,8.0,139.15,139.03,8.0552782]
[1723747553516,9.3739,139.2,139.03,8.0]
[1723747553719,3.593,139.14,139.1,3.5938]
[1723747554123,25.91358988,139.13,139.1,3.64793265]
[1723747554318,29.50688988,139.13,139.1,0.05413265]
[1723747554524,25.91358988,139.13,139.1,0.05413265]
[1723747554826,25.86,139.11,139.02,1.3032]
[1723747555027,25.91358988,139.13,139.03,1.2947]
[1723747555028,25.86,139.05,139.03,1.2947]
[1723747555229,25.86,139.05,139.04,3.5954]
[1723747556222,25.86,139.05,138.89,7.1984]
[1723747556429,8.0511449,139.06,138.96,2.5872]
[1723747556430,25.86,139.02,138.96,2.5872]
[1723747556732,25.86,139.02,139.0,3.5964]
[1723747556930,25.86,139.02,138.97,1.2542]
[1723747557125,25.86,139.02,138.96,2.5872]
[1723747557126,25.86,138.98,138.96,2.5872]
[1723747557534,25.86,138.97,138.93,1.2542]
[1723747557724,29.4575,138.97,138.93,1.2542]
[1723747557929,29.4575,138.97,138.96,0.05218259]
[1723747558135,25.86,138.97,138.96,0.05218259]
[1723747558332,25.86,138.97,138.94,3.5981]
[1723747558733,25.86,138.97,138.95,0.04637298]
[1723747558932,25.86,138.97,138.88,1.3449]
[1723747559239,25.86,138.9,138.87,2.6332]
[1723747559436,25.86,138.88,138.87,2.6332]
[1723747559826,3.59326699,138.99,138.87,2.6332]
[1723747559827,25.86,138.93,138.87,2.6332]
[1723747560032,25.86,138.93,138.91,3.5988]
[1723747560232,25.86,138.95,138.87,2.6332]
[1723747560435,25.86,138.95,138.92,3.5984]
[1723747560932,25.86,138.95,138.89,0.05022169]
[1723747561330,25.90761245,138.95,138.87,2.6332]
[1723747561634,25.90761245,138.95,138.91,0.04698341]
[1723747562034,25.90761245,138.95,138.92,3.5984]
[1723747562235,25.90761245,138.95,138.91,0.04698341]
[1723747562837,25.90761245,138.95,138.92,3.5985]
[1723747563035,25.90761245,138.95,138.91,0.04698341]
[1723747563238,25.86,138.93,138.91,0.04698341]
[1723747563445,25.90761245,138.95,138.91,0.04698341]
[1723747563650,0.04761245,138.95,138.91,3.73236969]
[1723747563845,0.04761245,138.95,138.94,3.5981]
[1723747564443,31.09,139.0,138.97,3.5973]
[1723747564750,31.09,139.0,138.91,3.63558467]
[1723747564949,31.09,139.0,138.91,3.56860126]
[1723747565251,31.09,139.0,138.9,1.2711]
[1723747565252,31.09,139.05,138.93,31.09]
[1723747565445,31.09,139.05,138.94,1.2839]
[1723747565642,31.09,139.07,138.96,31.09]
[1723747565844,31.09,139.07,138.98,0.04962434]
[1723747566039,0.04694423,139.0,138.99,3.5968]
[1723747566245,31.09,139.1,138.98,39.15962434]
[1723747566554,31.09,139.1,138.98,39.11]
[1723747567048,31.09,139.1,138.98,42.63167928]
[1723747567448,31.09,139.12,139.0,31.09]
[1723747567749,59.85,139.21,139.0,31.09]
[1723747567750,0.04990823,139.05,139.03,0.04932157]
[1723747567944,0.04990823,139.05,139.04,3.5955]
[1723747568344,31.09,139.1,139.04,7.98]
[1723747568651,0.04590552,139.06,139.03,0.04930387]
[1723747569250,0.04590552,139.06,139.05,3.5953]
[1723747569462,31.09,139.1,139.02,7.98]
[1723747569752,31.09,139.1,139.05,3.5951]
[1723747569948,0.05427853,139.07,139.04,0.05100596]
[1723747570146,0.05427853,139.07,139.06,3.595]
[1723747570353,31.09,139.1,139.02,9.3371]
[1723747570651,31.09,139.1,139.06,3.595]
[1723747570957,0.05172627,139.08,139.06,3.595]
[1723747571352,0.05172627,139.08,139.05,0.05455741]
[1723747571551,0.05172627,139.08,139.06,3.54734815]
[1723747571757,0.05172627,139.08,139.07,3.5947]
[1723747571947,0.05172627,139.08,139.05,0.05455741]
[1723747571948,31.09,139.15,139.05,34.67788726]
[1723747572156,31.09,139.17,139.05,31.14455741]
[1723747572360,31.09,139.17,139.11,3.5935]
[1723747572559,3.5924,139.16,139.11,3.5935]
[1723747572854,31.09,139.13,139.02,1.3571]
[1723747573060,31.09,139.13,139.03,7.98]
[1723747573459,31.09,139.13,139.12,0.04723483]
[1723747573653,31.1377808,139.15,139.12,0.04723483]
[1723747573959,31.13647229,139.15,139.12,0.05398026]
[1723747574553,31.09,139.13,139.03,7.98]
[1723747574752,31.09,139.06,139.01,1.3141]
[1723747574951,31.09,139.03,138.94,7.98]
[1723747575153,34.6859,139.03,138.94,9.3013]
[1723747575358,31.09,139.01,138.94,9.3013]
[1723747575651,31.09,139.01,138.96,3.5974]
[1723747575858,31.09,138.99,138.96,3.5974]
[1723747576055,31.14258669,138.99,138.96,0.04749404]
[1723747576260,31.09,138.97,138.96,0.04749404]
[1723747576451,31.09,138.97,138.89,9.2327]
[1723747576762,31.09,138.97,138.93,3.5982]
[1723747576959,31.09,138.97,138.9,3.62216135]
[1723747577149,31.09,138.99,138.9,1.3731]
[1723747577350,3.5971,138.98,138.91,3.65058315]
[1723747577652,31.09,138.99,138.91,3.51962698]
[1723747577859,0.04951727,138.96,138.94,3.598]
[1723747578058,0.04951727,138.96,138.93,0.04707047]
[1723747578359,3.5988,138.92,138.87,3.5998]
[1723747578553,31.09,138.91,138.87,3.5998]
[1723747578751,31.09,138.91,138.81,7.98]
[1723747578752,31.09,138.91,138.84,3.54804879]
[1723747578954,31.09,138.91,138.81,7.98]
[1723747579255,31.09,138.88,138.81,11.57841655]
[1723747579657,31.09,138.88,138.84,3.6005]
[1723747579965,31.09,138.88,138.81,11.57841655]
[1723747580162,0.04544258,138.87,138.81,11.57841655]
[1723747580460,0.04544258,138.87,138.85,0.04553706]
[1723747581259,0.04544258,138.87,138.85,3.64583706]
[1723747581958,0.04544258,138.87,138.86,3.6002]
[1723747583166,0.04544258,138.87,138.85,3.64583706]
[1723747583362,0.04544258,138.87,138.85,0.04553706]
[1723747583564,0.04544258,138.87,138.86,3.6002]
[1723747583962,0.04544258,138.87,138.85,0.04553706]
[1723747584858,31.09,138.86,138.85,0.04553706]
[1723747585060,31.09,138.86,138.7,39.62961648]
[1723747585263,31.09,138.81,138.75,2.628]
[1723747585569,31.09,138.81,138.7,32.42101648]
[1723747585865,31.09,138.87,138.71,2.628]
[1723747586068,31.09,138.84,138.73,31.09]
[1723747586572,31.09,138.86,138.79,0.05486188]
[1723747586962,31.09,138.86,138.82,3.6011]
[1723747587162,31.09,138.86,138.79,0.05486188]
[1723747587462,0.0551691,138.8,138.79,3.602]
[1723747587866,31.09,138.86,138.81,0.04686719]
[1723747588067,31.09,138.86,138.83,3.6008]
[1723747588266,0.0474316,138.85,138.78,31.09]
[1723747588562,31.09,138.91,138.79,2.5913]
[1723747588769,0.04567021,138.83,138.79,10.5913]
[1723747588961,31.09,138.91,138.8,0.04578834]
[1723747589267,31.09,138.91,138.87,3.5999]
[1723747589472,34.6889,138.91,138.84,3.63449081]
[1723747589663,34.6889,138.91,138.86,3.6]
[1723747589869,31.09,138.88,138.81,3.68176889]
[1723747590068,31.09,138.88,138.8,8.0]
[1723747590672,0.0517446,138.86,138.83,0.0548146]
[1723747591365,0.0517446,138.86,138.85,3.6004]
[1723747591868,0.0517446,138.86,138.84,3.6005]
[1723747592271,31.1417446,138.86,138.83,0.0548146]
[1723747593576,0.0517446,138.86,138.83,0.0548146]
[1723747593970,25.89,138.93,138.83,0.0548146]
[1723747594273,25.89,138.91,138.83,0.0548146]
[1723747594572,29.4889,138.91,138.86,3.6]
[1723747594769,25.89,138.88,138.8,8.0]
[1723747595373,25.89,138.88,138.86,3.6001]
[1723747595776,25.89,138.88,138.83,0.04530796]
[1723747595968,25.89,138.84,138.83,0.04530796]
[1723747596175,25.89,138.86,138.83,0.04530796]
[1723747596475,25.89,138.9,138.83,0.04530796]
[1723747596771,0.05289093,138.86,138.85,3.6002]
[1723747597177,25.89,138.88,138.85,0.05022943]
[1723747597475,0.05472097,138.87,138.86,3.5997]
[1723747597676,0.05472097,138.87,138.85,0.05022943]
[1723747597875,0.05472097,138.87,138.86,3.5999]
[1723747598076,25.89,138.93,138.85,0.05022943]
[1723747598276,25.89,138.95,138.85,0.05022943]
[1723747598479,25.89,138.91,138.83,7.96]
[1723747598775,29.4887,138.91,138.86,3.5998]
[1723747598974,25.89,138.87,138.76,27.2277]
[1723747599176,25.89,138.87,138.8,7.96]
[1723747599370,25.89,138.85,138.8,7.96]
[1723747599569,25.89,138.85,138.82,0.05512711]
[1723747599570,0.05414264,138.84,138.82,0.05512711]
[1723747601372,25.89,138.93,138.82,3.677771]
[1723747601771,25.89,138.93,138.83,25.89]
[1723747601971,25.89,138.91,138.84,7.96]
[1723747602173,25.89,138.89,138.84,7.96]